[Event "ChessKid Cup Div-III 2023"]
[Site "Online"]
[Date "2023.05.25"]
[Round "57.2"]
[White "Bernadskiy, Vitaliy"]
[Black "Lazavik, Denis"]
[Result "1/2-1/2"]
[ECO "C65"]
[WhiteElo "2592"]
[BlackElo "2544"]
[Annotator "TA"]
[PlyCount "152"]
[EventDate "2023.05.21"]
[EventType "k.o."]
[EventCountry "NET"]
[SourceTitle "playchess.com"]
[Source "ChessBase"]
[SourceQuality "1"]
[TimeControl "900+3"]

{[%evp 9,152,9,12,6,19,19,33,28,32,27,29,0,0,1,9,-1,13,6,7,16,12,12,19,18,27,21,28,-17,39,0,22,0,0,-14,17,-30,-38,-72,0,0,0,0,0,0,0,0,0,0,0,0,0,0,107,0,0,0,81,67,72,68,78,75,93,67,69,72,113,110,101,76,81,72,63,66,120,121,152,118,145,0,0,8,8,8,17,-38,-38,-75,-66,-116,-118,-904,-43,-327,-19,-58,-56,-70,-48,-276,-267,-250,-232,-644,-630,-539,-71,-356,-343,-257,-70,-734,-8,-8,0,0,0,0,0,0,0,0,0,0,0,-94,0,0,0,0,0,0,0,0,0,0,0,0,0,0,0,0,0,0,0]} 1. e4 {[%emt 0:00:09]} e5 {[%emt 0:00:05]} 2. Nf3 {[%emt 0:00:01]} Nc6 {[%emt 0:00:01]} 3. Bb5 {[%emt 0:00:02]} Nf6 {[%emt 0:00:01]} 4. d3 {[%emt 0:00:02]} Bc5 {[%emt 0:00:01]} 5. c3 {[%emt 0:00:01]} O-O {[%emt 0:00:03]} 6. O-O {[%emt 0:00:02] C65: Ruy Lopez: Berlin Defence (3...Nf6), unusual lines and 4 0-0 Bc5.} d5 {[%emt 0:00:01] Nowadays more popular than 6...d6.} 7. exd5 {[%emt 0:00:01]} Qxd5 {[%emt 0:00:02][%cal Oc5f2]} 8. Bc4 {[%emt 0:00:01] White is slightly better.} Qd8 {[%emt 0:00:02]} 9. Nbd2 {[%emt 0:00:10]} a5 {[%emt 0:00:13] [#]} 10. Qc2 $146 {[%emt 0:00:44]} ({Predecessor:} 10. h3 Bf5 11. Qc2 h6 12. Ne4 Bb6 13. Re1 Re8 14. Be3 Bxe3 15. Nxf6+ Qxf6 16. Rxe3 {½-½ Grandelius,N (2666)-Jones,G (2684) Sigeman & Co 26th 2021 (6)}) 10... h6 {[%emt 0:00:15]} 11. Re1 {[%emt 0:00:42]} Re8 {[%emt 0:00:16]} 12. Bb5 {[%emt 0:00:03]} Qd5 {[%emt 0:02:06][%cal Oc5f2]} 13. a4 {[%emt 0:00:26]} Bg4 {[%emt 0:00:32]} 14. Ne4 {[%emt 0:00:36]} Bxf3 {[%emt 0:02:37]} 15. gxf3 {[%emt 0:00:03]} Be7 {[%emt 0:01:02]} 16. Kh1 {[%emt 0:00:16]} Qd7 {[%emt 0:00:26]} 17. Rg1 {[%emt 0:00:28]} Kh8 {[%emt 0:00:18]} 18. Be3 {[%emt 0:00:55]} Nh5 {[%emt 0:00:14]} (18... Nd5 $11 19. Nd2 Red8) 19. Qd2 {[%emt 0:00:33]} (19. Ng3 $5 {[%cal Rg3h5]} Nf6 20. Rad1 $11) 19... Qf5 {[%emt 0:00:17]} 20. Rg2 {[%emt 0:00:24]} Bf8 {[%emt 0:00:32]} 21. Qd1 {[%emt 0:02:38]} Nf4 {[%emt 0:00:24]} (21... Qh3 {seems wilder.} 22. Ng3 Nf4 23. Rg1 Rad8) 22. Rg4 {[%emt 0:00:10]} (22. Bxf4 $142 Qxf4 23. Qe2) 22... Nd5 $11 {[%emt 0:00:22]} 23. Qe2 {[%emt 0:00:10]} Re6 {[%emt 0:00:25]} (23... Qd7 $17 24. Nd2 f5) 24. Rag1 {[%emt 0:00:09]} Rg6 {[%emt 0:00:04]} 25. Ng3 {[%emt 0:00:37]} Qe6 {[%emt 0:00:22]} 26. Bc4 {[%emt 0:00:10]} Rd8 {[%emt 0:00:29]} 27. Bc1 {[%emt 0:00:02]} Qd7 {[%emt 0:01:41][%cal Od5f4]} 28. Rxg6 {[%emt 0:00:24]} fxg6 {[%emt 0:00:00]} 29. Qe4 {[%emt 0:00:01]} g5 {[%emt 0:00:07]} 30. Nh5 {[%emt 0:00:29][%cal Oc1g5]} Nf4 {[%emt 0:00:34]} (30... Qf7 $11 {remains equal.}) 31. Bxf4 {[%emt 0:01:41]} (31. Nxf4 $16 gxf4 32. Re1) 31... exf4 {[%emt 0:00:03]} 32. d4 {[%emt 0:00:04]} (32. Re1 {is more complex.} Ne7 33. d4 Qf5 34. Qxb7 Qg6 35. Nxf4 gxf4 36. Qxc7 Rc8 37. Qxf4 Qc2 38. Be6) 32... Qe8 {[%emt 0:00:17] Black is weak on the light squares} (32... Qe7 $1 $11) 33. Qxe8 $16 {[%emt 0:00:28]} Rxe8 {[%emt 0:00:00] [#]} 34. h4 $1 {[%emt 0:00:01][%mdl 64] Deflection} gxh4 {[%emt 0:00:58]} 35. Nxf4 {[%emt 0:00:05]} g5 {[%emt 0:00:01]} 36. Ng6+ {[%emt 0:00:32]} Kg7 {[%emt 0:00:14]} 37. Nxh4 {[%emt 0:00:03]} Kf6 {[%emt 0:00:02] Inhibits f4.} 38. Ng2 {[%emt 0:00:01]} Bd6 {[%emt 0:00:42]} 39. Bb5 {[%emt 0:00:07] aiming for d5.} Rb8 {[%emt 0:00:19]} 40. Re1 {[%emt 0:00:19]} Ne7 {[%emt 0:00:04]} 41. Ne3 {[%emt 0:00:12]} h5 {[%emt 0:00:04]} (41... Ng6 $14) 42. Nc4 {[%emt 0:00:06]} b6 {[%emt 0:00:23]} 43. Nxd6 {[%emt 0:00:58]} cxd6 {[%emt 0:00:02][%mdl 4096] Endgame KRB-KRN} 44. Bd7 {[%emt 0:00:00] White is more active.} (44. Bc4 $1 $16) 44... Rd8 $11 {[%emt 0:00:03]} 45. Re6+ {[%emt 0:00:02]} Kf7 {[%emt 0:00:01] ...Nf5 would be deadly.} 46. Rxd6 {[%emt 0:00:01]} Kg7 {[%emt 0:00:02] [#]} 47. Rxb6 {[%emt 0:01:03]} Rxd7 {[%emt 0:00:02] KRN-KR} 48. Rb5 {[%emt 0:00:00]} Rd5 {[%emt 0:00:12]} 49. b3 {[%emt 0:00:19]} (49. Kh2 $15) 49... Kf7 $17 {[%emt 0:00:05]} 50. c4 {[%emt 0:00:04][%mdl 8192]} (50. Rb7 $17) 50... Rf5 $2 {[%emt 0:00:12]} (50... Rxd4 51. Rxg5 Rd3 52. Rxh5 $15) (50... Rxb5 $19 51. axb5 Ke8) 51. Kg2 $2 {[%emt 0:00:04][%mdl 8192]} (51. d5 $1 $15) 51... h4 $2 {[%emt 0:00:01]} (51... Rxb5 $1 $19 52. axb5 Nf5) 52. d5 {[%emt 0:00:04]} Ng6 $1 {[%emt 0:00:07] And now ...Nf4+ would win.} 53. b4 {[%emt 0:00:31]} axb4 {[%emt 0:00:02] White must now prevent ...Nf4+.} 54. a5 $2 {[%emt 0:00:00]} ({White should play} 54. Rb7+ $15 Kf6 55. Rb6+ Kf7 56. Rb7+ Kf6 57. Rb6+ Kg7 58. Rxb4) 54... Nf4+ $19 {[%emt 0:00:02]} 55. Kh2 {[%emt 0:00:04]} Re5 {[%emt 0:00:02] ...Re2 is the strong threat.} 56. a6 $2 {[%emt 0:00:01]} (56. Rxb4 Re2 57. Rb7+ Kf6 58. d6 Rxf2+ 59. Kg1 Rg2+ 60. Kh1) 56... Re2 {[%emt 0:00:00] ( -> ...h3)} 57. Rb7+ {[%emt 0:00:21]} Kf6 $2 {[%emt 0:00:02]} (57... Kg6 $1 $19 {is more deadly.} 58. Rxb4 Rxf2+ 59. Kg1 Rg2+ 60. Kf1 Ra2 61. Rb6+ Kf5) 58. d6 $2 {[%emt 0:00:04][%mdl 8192]} (58. a7 $17 Rxf2+ 59. Kh1 Rf1+ 60. Kh2) 58... Rxf2+ {[%emt 0:00:01]} 59. Kg1 {[%emt 0:00:01]} Ra2 {[%emt 0:00:01]} (59... Rxf3 60. d7 Rg3+ 61. Kf2 Nh3+ 62. Ke2 Nf4+ 63. Kf2 $11) (59... Rg2+ $1 $19 60. Kh1 h3) 60. a7 $2 {[%emt 0:00:04][%mdl 8192] [#]} (60. d7 $15 Ne2+ 61. Kh2) 60... b3 $2 {[%emt 0:00:04]} 61. d7 $132 {[%emt 0:00:02][%mdl 2048] White puts up resistance} Ne6 {[%emt 0:00:16]} 62. Rb6 {[%emt 0:00:12] Dancing on a razor blade.} Ke7 {[%emt 0:00:00] Hoping for ...Nd4.} (62... Rxa7 {gets mated.} 63. d8=Q+ (63. d8=B+ $2 {is the wrong capture.} Kf7 $19) 63... Kf7 64. Qd5 Re7 65. Qf5+ Kg7 66. Rxe6 Rxe6 67. Qxe6) 63. Rxe6+ $1 {[%emt 0:00:01][%mdl 64] Remove Defender, Deflection, Promotion} Kxd7 $1 {[%emt 0:00:01] KR-KR} 64. Rb6 {[%emt 0:00:03]} Rxa7 {[%emt 0:00:01] Threatens to win with ...Ra1+.} 65. Rxb3 {[%emt 0:00:01]} Ke6 {[%emt 0:00:04]} 66. Rb6+ {[%emt 0:00:03]} Ke5 {[%emt 0:00:01]} 67. Kg2 {[%emt 0:00:03] [#]} (67. Rb2 $11) 67... Rc7 {[%emt 0:00:03]} (67... Ra2+ $1 $17 68. Kh3 Rf2 69. Rb5+ Kf4) 68. Rb4 {[%emt 0:00:04] The position is equal.} Kd4 {[%emt 0:00:04]} 69. c5+ {[%emt 0:00:07]} Kxc5 {[%emt 0:00:01]} 70. Rg4 {[%emt 0:00:00]} Rg7 {[%emt 0:00:02]} 71. f4 {[%emt 0:00:01]} h3+ {[%emt 0:00:01]} 72. Kh2 {[%emt 0:00:03]} Kd6 {[%emt 0:00:06]} 73. fxg5 {[%emt 0:00:07]} Ke5 {[%emt 0:00:01]} 74. Kxh3 {[%emt 0:00:02]} Kf5 {[%emt 0:00:00]} 75. g6 {[%emt 0:00:05]} Rxg6 {[%emt 0:00:01]} 76. Rxg6 {[%emt 0:00:00]} Kxg6 {[%emt 0:00:00] Black had all chances to win.   Weighted Error Value: White=0.54/Black=0.60} 1/2-1/2

[Event "ChessKid Cup Div-III 2023"]
[Site "Online"]
[Date "2023.05.25"]
[Round "58.1"]
[White "Harikrishna, Pentala"]
[Black "Lazavik, Denis"]
[Result "1-0"]
[ECO "A29"]
[WhiteElo "2704"]
[BlackElo "2544"]
[Annotator "TA"]
[PlyCount "119"]
[EventDate "2023.05.21"]
[EventType "k.o."]
[EventCountry "NET"]
[SourceTitle "playchess.com"]
[Source "ChessBase"]
[SourceQuality "1"]
[TimeControl "900+3"]

{[%evp 18,119,-6,-17,4,0,10,-14,-7,-31,-41,-37,-29,-29,-43,-54,-13,-9,0,0,0,2,2,2,2,10,18,-23,-14,-39,-32,-46,-2,0,-12,-15,0,0,0,-29,0,0,0,0,0,0,0,0,0,0,0,-22,0,0,0,0,8,12,25,15,17,14,18,14,19,15,16,18,18,28,36,35,120,52,56,0,0,0,0,0,0,0,0,0,1112,1152,1062,898,1163,592,29975,29976,29976,29977,29977,29976,29996,29997,29998,0,29982,29983,29983,29984]} 1. c4 {[%emt 0:00:04]} Nf6 {[%emt 0:00:05]} 2. Nc3 {[%emt 0:00:02]} e5 {[%emt 0:00:01]} 3. Nf3 {[%emt 0:00:02]} Nc6 {[%emt 0:00:01]} 4. d3 {[%emt 0:00:05]} d5 {[%emt 0:00:06]} 5. cxd5 {[%emt 0:00:01]} Nxd5 {[%emt 0:00:01]} 6. g3 {[%emt 0:00:01]} Be7 {[%emt 0:00:02]} 7. Bg2 {[%emt 0:00:01]} Be6 {[%emt 0:00:01]} 8. O-O {[%emt 0:00:02]} O-O {[%emt 0:00:01]} 9. Bd2 {[%emt 0:00:23]} Qd7 {[%emt 0:00:48]} 10. Rc1 {[%emt 0:00:14]} Nxc3 {[%emt 0:00:14] A29: English Opening: Four Knights Variation with 4 g3.} 11. Bxc3 {[%emt 0:00:08]} f6 {[%emt 0:00:02] [#]} 12. Re1 $146 {[%emt 0:00:40]} ({Predecessor:} 12. a3 Nd4 13. Nd2 c5 14. a4 Rab8 15. Nc4 b6 16. e3 Nf5 17. Qc2 Nd6 18. Rfd1 {½-½ Maghsoodloo,P (2501)-Costachi,M (2420) World ol U16 2016 (9.1)}) 12... Rfd8 {[%emt 0:00:24] The position is equal.} (12... Bxa2 13. b3 $16) 13. Qa4 {[%emt 0:00:29] [#]} Nb4 $1 {[%emt 0:00:45][%mdl 64] Discovered Attack} 14. Qxd7 {[%emt 0:00:31]} Rxd7 {[%emt 0:00:05]} 15. a3 {[%emt 0:00:15]} Na2 {[%emt 0:00:12]} 16. Rb1 {[%emt 0:00:23][%cal Bc1b1,Bb1b7,Bb7b5,Bb5a5,Ba5c5,Bc5c6][%mdl 32]} Nxc3 {[%emt 0:01:56]} (16... Rad8 $5) 17. bxc3 {[%emt 0:00:03]} Bxa3 {[%emt 0:00:53][%cal Be7a3,Ba3b2,Bb2c3,Bc3b4][%mdl 32]} 18. Rxb7 {[%emt 0:00:02]} Bd5 {[%emt 0:00:02]} 19. Rb5 {[%emt 0:02:25][%cal Of3e5]} c6 {[%emt 0:00:06]} 20. Ra5 {[%emt 0:00:01]} Bb2 {[%emt 0:00:06]} 21. Rb1 {[%emt 0:01:24]} Bxc3 {[%emt 0:00:04]} 22. Rc5 {[%emt 0:01:11]} (22. Ra3 $5 {[%cal Ra3c3]} Bd4 23. Nxd4 exd4 24. Rc1 $11) 22... Ba2 {[%emt 0:00:48]} 23. Rc1 {[%emt 0:00:07]} Bb4 {[%emt 0:00:03]} 24. Rxc6 {[%emt 0:00:12]} Bd5 {[%emt 0:01:13]} 25. Ra6 {[%emt 0:00:35]} Bb7 {[%emt 0:00:14]} 26. Ra2 {[%emt 0:00:21]} (26. Ra4 $5 {[%cal Ra4b4]} a5 27. Nh4 $15) 26... Bd5 {[%emt 0:00:55]} 27. Ra6 {[%emt 0:00:55]} Bb7 {[%emt 0:01:22]} 28. Nh4 {[%emt 0:00:05]} Bxa6 {[%emt 0:00:21] This pair of bishops is nice.} 29. Bxa8 {[%emt 0:00:01]} Rd8 {[%emt 0:00:47]} 30. Be4 {[%emt 0:00:31]} Bb5 {[%emt 0:00:08]} 31. Bc6 {[%emt 0:01:00]} Bxc6 {[%emt 0:00:37]} 32. Rxc6 $11 {[%emt 0:00:01][%mdl 4096] Endgame KRB-KRN} a5 {[%emt 0:00:14]} 33. Ra6 {[%emt 0:00:02] Dodges Ra8} g6 {[%emt 0:00:04]} 34. g4 {[%emt 0:00:24]} Rc8 {[%emt 0:00:29]} 35. Nf3 {[%emt 0:00:03]} Rc2 {[%emt 0:00:07]} 36. e3 {[%emt 0:00:26]} Kg7 {[%emt 0:00:05]} 37. h4 {[%emt 0:00:04]} Rc3 {[%emt 0:00:08]} 38. Ra7+ {[%emt 0:00:42]} Kg8 {[%emt 0:00:02]} 39. g5 {[%emt 0:00:01]} fxg5 {[%emt 0:00:39]} 40. hxg5 {[%emt 0:00:02]} Rxd3 {[%emt 0:00:06]} 41. Nxe5 {[%emt 0:00:01]} Rd5 {[%emt 0:00:02]} 42. f4 {[%emt 0:00:01]} Rd2 {[%emt 0:00:20]} 43. Ng4 {[%emt 0:00:31] Nf6+ is the strong threat.} Bc3 {[%emt 0:00:06]} 44. Kf1 {[%emt 0:00:18]} Ra2 {[%emt 0:00:18] [#]} (44... Kf8 $1 $14) 45. e4 {[%emt 0:00:25]} ({White should try} 45. Nh6+ $1 $16 Kf8 46. Rf7+ (46. Rxh7 Bg7 $11) 46... Ke8 47. Rxh7) 45... Ra4 {[%emt 0:01:03]} 46. Ke2 {[%emt 0:00:23]} (46. Nh6+ $14 Kf8 47. Ke2) 46... Bg7 $1 {[%emt 0:00:02]} (46... Rxe4+ $2 47. Kd3 Rxf4 48. Nh6+ (48. Kxc3 Rxg4 49. Rxa5 Rh4 $11) 48... Kf8 49. Kxc3 $18) 47. Kd3 {[%emt 0:00:29]} Ra3+ {[%emt 0:00:03]} 48. Kc2 {[%emt 0:00:10]} Ra4 {[%emt 0:00:17]} 49. e5 {[%emt 0:00:19]} Rxf4 {[%emt 0:00:10]} 50. Nf6+ {[%emt 0:00:02][%mdl 64] Deflection} Kf8 $2 {[%emt 0:00:36][%mdl 8192]} (50... Bxf6 $11 51. exf6 (51. gxf6 h5 $11) 51... Rf5) 51. Nxh7+ $18 {[%emt 0:00:02]} ({Not} 51. Rxa5 Bxf6 52. exf6 Rf5 53. Rxf5 gxf5 $11) 51... Kg8 {[%emt 0:00:00]} 52. Nf6+ {[%emt 0:00:02]} Kf8 {[%emt 0:00:01]} 53. Kd3 {[%emt 0:00:26] Strongly threatening Ke3.} ({Less strong is} 53. Rxa5 Rf5 $16) 53... a4 {[%emt 0:00:03]} 54. Ke3 {[%emt 0:00:06][%mdl 64] Deflection} Rf1 {[%emt 0:00:06]} 55. Ke4 {[%emt 0:00:08]} a3 {[%emt 0:00:18]} 56. Kd5 {[%emt 0:00:16]} Rb1 {[%emt 0:00:02]} 57. Ra8+ {[%emt 0:00:07]} Ke7 {[%emt 0:00:01]} 58. Ra7+ {[%emt 0:00:01]} Kf8 $1 {[%emt 0:00:01]} 59. e6 {[%emt 0:00:05][%csl Ge6][%cal Ra7f7]} Bxf6 {[%emt 0:00:02]} 60. gxf6 {[%emt 0:00:01] Weighted Error Value: White=0.18 (very precise) /Black=0.22 (precise)} 1-0

[Event "ChessKid Cup Div-III 2023"]
[Site "Online"]
[Date "2023.05.25"]
[Round "58.2"]
[White "Lazavik, Denis"]
[Black "Harikrishna, Pentala"]
[Result "1/2-1/2"]
[ECO "D37"]
[WhiteElo "2544"]
[BlackElo "2704"]
[Annotator "TA"]
[PlyCount "69"]
[EventDate "2023.05.21"]
[EventType "k.o."]
[EventCountry "NET"]
[SourceTitle "playchess.com"]
[Source "ChessBase"]
[SourceQuality "1"]
[TimeControl "900+3"]

{[%evp 9,69,2,31,18,30,4,14,2,22,8,5,0,0,0,0,0,0,0,0,0,0,0,0,0,0,0,0,-7,0,-23,-7,-32,-37,-37,-12,-21,-21,-22,-10,-88,-83,-99,-9,-1,-16,-17,0,0,0,0,0,0,0,0,16,-41,-41,-41,-41,-41,-41,-41]} 1. d4 {[%emt 0:00:03]} Nf6 {[%emt 0:00:05]} 2. c4 {[%emt 0:00:01]} e6 {[%emt 0:00:02]} 3. Nf3 {[%emt 0:00:01]} d5 {[%emt 0:00:02]} 4. Nc3 {[%emt 0:00:01]} Nbd7 {[%emt 0:00:03]} 5. Qc2 {[%emt 0:00:18]} dxc4 {[%emt 0:00:19]} 6. e4 {[%emt 0:00:04] D37: Queen's Gambit Declined: 5 Bf4.} Nb6 {[%emt 0:00:13]} 7. a4 {[%emt 0:00:14][%mdl 1024] Black should prevent a5. White has compensation.} a5 {[%emt 0:00:03]} ({Don't do} 7... Bb4 8. a5 Nbd7 9. e5 $16 (9. Bxc4 c5 $16)) 8. Be3 {[%emt 0:00:03] The position is equal.} Bb4 {[%emt 0:00:18]} (8... Ng4 $5 {[%cal Rg4e3]}) 9. Ne5 {[%emt 0:00:09]} O-O {[%emt 0:00:01][%cal Oc7c5]} 10. Be2 {[%emt 0:00:43]} Nfd7 {[%emt 0:00:53]} 11. Nxc4 {[%emt 0:00:06]} Nxc4 {[%emt 0:00:19]} 12. Bxc4 {[%emt 0:00:02] [#]} c5 $146 {[%emt 0:00:21]} ({Predecessor:} 12... e5 13. d5 Kh8 14. O-O c6 15. Rad1 Qc7 16. Ba2 cxd5 17. exd5 f5 18. f4 exf4 19. Bxf4 {1-0 Indjic,A (2618)-Javakhadze,Z (2454) Titled Tuesday intern op 4th Aug 2pm blitz 2020 (3)}) 13. Rd1 {[%emt 0:01:07]} cxd4 {[%emt 0:00:08]} 14. Bxd4 {[%emt 0:00:06]} Qc7 {[%emt 0:00:08]} 15. Be2 {[%emt 0:01:30]} e5 {[%emt 0:00:18]} 16. Be3 {[%emt 0:00:03]} Nf6 {[%emt 0:00:02]} 17. O-O {[%emt 0:00:16]} Be6 {[%emt 0:00:06]} 18. Rc1 {[%emt 0:00:30]} Rac8 {[%emt 0:00:27]} 19. Qb1 {[%emt 0:00:08][%cal Oc3d5]} Qe7 {[%emt 0:00:07]} 20. Bg5 {[%emt 0:00:35]} h6 {[%emt 0:00:06]} 21. Bh4 {[%emt 0:00:02][%cal Oc3d5]} Bxc3 {[%emt 0:00:19]} 22. Rxc3 {[%emt 0:00:18]} Rxc3 {[%emt 0:00:01]} 23. bxc3 {[%emt 0:00:01]} Rc8 {[%emt 0:00:01]} 24. Rc1 {[%emt 0:00:05] [#]} (24. f3 $11 {remains equal.}) 24... Qa3 $1 $17 {[%emt 0:00:19][%csl LRa4,LRc3]} 25. f3 {[%emt 0:01:27]} Rxc3 {[%emt 0:00:45]} (25... Qxa4 $17 {[%cal Oc8c3] Strongly threatening ...Rxc3!} 26. Bf2 Qb3) 26. Rxc3 $11 {[%emt 0:00:03]} Qxc3 {[%emt 0:00:00]} 27. Qxb7 {[%emt 0:00:00]} Qd4+ {[%emt 0:01:51]} 28. Bf2 {[%emt 0:00:11]} Qxa4 {[%emt 0:00:37] [#] aiming for ...Qa1+.} 29. Qb8+ {[%emt 0:00:02]} Kh7 {[%emt 0:00:52] ...Qa1+ would be deadly.} 30. Qxe5 {[%emt 0:00:05]} Qc2 {[%emt 0:00:01] Against Qb2} 31. Qb5 {[%emt 0:00:32] Repels Qb1+} a4 {[%emt 0:00:06][%cal Ba5a4,Ba4a3][%mdl 32]} 32. Qd3 {[%emt 0:00:48]} ({White should try} 32. e5 $1 $11 Qc1+ 33. Bf1) 32... Qxd3 $15 {[%emt 0:00:22] Black is slightly better.} 33. Bxd3 {[%emt 0:00:00] Hoping for e5+.} Nd7 {[%emt 0:00:01]} 34. Bd4 {[%emt 0:00:05]} a3 {[%emt 0:00:24] Against Bb2} 35. Bb5 {[%emt 0:00:14] Weighted Error Value: White=0.12 (very precise) /Black=0.11 (very precise)} 1/2-1/2